[Event "Titled Tuesday Blitz May 16 Late 2023"]
[White "Fishbein, Alexander"]
[Black "Przybylski, Wojciech"]
[WhiteFideId "2000377"]
[BlackFideId "1117599"]
[WhiteElo "2415"]
[BlackElo "2222"]
[Result "0-1"]
[Round "10"]
[TimeControl "180+2"]
[Date "2023.05.16"]
[WhiteClock "0:00:04"]
[BlackClock "0:00:02"]

1. e4 {[%clk 0:03:00]}  e5 {[%clk 0:02:57]} 2. Nf3 {[%clk 0:03:00]}  Nc6 {[%clk 0:02:57]} 3. Bb5 {[%clk 0:02:59]}  Nf6 {[%clk 0:02:57]} 4. O-O {[%clk 0:02:58]}  Nxe4 {[%clk 0:02:57]} 5. d4 {[%clk 0:02:58]}  Nd6 {[%clk 0:02:57]} 6. Bxc6 {[%clk 0:02:58]}  dxc6 {[%clk 0:02:56]} 7. dxe5 {[%clk 0:02:58]}  Nf5 {[%clk 0:02:57]} 8. Qe2 {[%clk 0:02:57]}  Nd4 {[%clk 0:02:57]} 9. Qe4 {[%clk 0:02:57]}  Nxf3+ {[%clk 0:02:39]} 10. Qxf3 {[%clk 0:02:56]}  Qh4 {[%clk 0:02:27]} 11. Nc3 {[%clk 0:02:52]}  Be7 {[%clk 0:02:09]} 12. Ne4 {[%clk 0:02:49]}  Qg4 {[%clk 0:02:02]} 13. Qxg4 {[%clk 0:02:47]}  Bxg4 {[%clk 0:02:01]} 14. Ng3 {[%clk 0:02:41]}  f6 {[%clk 0:01:39]} 15. Bf4 {[%clk 0:02:37]}  O-O-O {[%clk 0:01:35]} 16. h3 {[%clk 0:02:31]}  Bd7 {[%clk 0:01:25]} 17. Rfe1 {[%clk 0:02:29]}  fxe5 {[%clk 0:01:19]} 18. Bxe5 {[%clk 0:02:29]}  Bf8 {[%clk 0:01:02]} 19. Nh5 {[%clk 0:02:26]}  Rg8 {[%clk 0:01:02]} 20. Rad1 {[%clk 0:02:23]}  Bf5 {[%clk 0:01:00]} 21. Rxd8+ {[%clk 0:02:22]}  Kxd8 {[%clk 0:00:59]} 22. c3 {[%clk 0:02:10]}  Bg6 {[%clk 0:00:59]} 23. Nf4 {[%clk 0:02:09]}  Bf7 {[%clk 0:00:59]} 24. b3 {[%clk 0:02:04]}  Bd6 {[%clk 0:00:50]} 25. Re3 {[%clk 0:01:50]}  c5 {[%clk 0:00:37]} 26. c4 {[%clk 0:01:48]}  Kd7 {[%clk 0:00:33]} 27. Bxd6 {[%clk 0:01:47]}  cxd6 {[%clk 0:00:33]} 28. g4 {[%clk 0:01:42]}  a6 {[%clk 0:00:30]} 29. a4 {[%clk 0:01:31]}  b5 {[%clk 0:00:30]} 30. cxb5 {[%clk 0:01:27]}  axb5 {[%clk 0:00:30]} 31. axb5 {[%clk 0:01:27]}  Rb8 {[%clk 0:00:29]} 32. Ne2 {[%clk 0:00:58]}  Rxb5 {[%clk 0:00:27]} 33. Nc1 {[%clk 0:00:58]}  d5 {[%clk 0:00:25]} 34. Kf1 {[%clk 0:00:56]}  d4 {[%clk 0:00:25]} 35. Rg3 {[%clk 0:00:49]}  c4 {[%clk 0:00:21]} 36. bxc4 {[%clk 0:00:47]}  Rb1 {[%clk 0:00:21]} 37. Ke2 {[%clk 0:00:47]}  Rxc1 {[%clk 0:00:21]} 38. Kd3 {[%clk 0:00:43]}  Rxc4 {[%clk 0:00:20]} 39. Rf3 {[%clk 0:00:40]}  Be6 {[%clk 0:00:20]} 40. Rf4 {[%clk 0:00:39]}  Rc3+ {[%clk 0:00:20]} 41. Kxd4 {[%clk 0:00:38]}  Rxh3 {[%clk 0:00:20]} 42. Ke5 {[%clk 0:00:38]}  Ra3 {[%clk 0:00:17]} 43. Rb4 {[%clk 0:00:32]}  Ra5+ {[%clk 0:00:17]} 44. Kf4 {[%clk 0:00:32]}  Ke7 {[%clk 0:00:16]} 45. f3 {[%clk 0:00:31]}  h6 {[%clk 0:00:16]} 46. Kg3 {[%clk 0:00:28]}  Ra3 {[%clk 0:00:15]} 47. Rb7+ {[%clk 0:00:25]}  Kf6 {[%clk 0:00:15]} 48. Rb6 {[%clk 0:00:25]}  g5 {[%clk 0:00:14]} 49. Kf2 {[%clk 0:00:23]}  Ke5 {[%clk 0:00:13]} 50. Rb5+ {[%clk 0:00:19]}  Bd5 {[%clk 0:00:14]} 51. Rb6 {[%clk 0:00:17]}  Rxf3+ {[%clk 0:00:13]} 52. Ke2 {[%clk 0:00:17]}  Rf6 {[%clk 0:00:13]} 53. Rb5 {[%clk 0:00:16]}  Re6 {[%clk 0:00:12]} 54. Kd2 {[%clk 0:00:16]}  Ra6 {[%clk 0:00:09]} 55. Rb8 {[%clk 0:00:15]}  Ra4 {[%clk 0:00:09]} 56. Rh8 {[%clk 0:00:14]}  Ra6 {[%clk 0:00:08]} 57. Ke3 {[%clk 0:00:13]}  Ra3+ {[%clk 0:00:07]} 58. Kf2 {[%clk 0:00:13]}  Rh3 {[%clk 0:00:07]} 59. Rf8 {[%clk 0:00:11]}  Be6 {[%clk 0:00:06]} 60. Kg2 {[%clk 0:00:10]}  Rh4 {[%clk 0:00:06]} 61. Rb8 {[%clk 0:00:08]}  Rxg4+ {[%clk 0:00:06]} 62. Kh2 {[%clk 0:00:08]}  Rf4 {[%clk 0:00:06]} 63. Rb5+ {[%clk 0:00:08]}  Bd5 {[%clk 0:00:06]} 64. Rb6 {[%clk 0:00:09]}  Rf6 {[%clk 0:00:06]} 65. Rb5 {[%clk 0:00:08]}  h5 {[%clk 0:00:06]} 66. Rb8 {[%clk 0:00:08]}  Be6 {[%clk 0:00:05]} 67. Kg3 {[%clk 0:00:07]}  Kf5 {[%clk 0:00:05]} 68. Rb5+ {[%clk 0:00:06]}  Kg6 {[%clk 0:00:05]} 69. Rc5 {[%clk 0:00:07]}  h4+ {[%clk 0:00:05]} 70. Kg2 {[%clk 0:00:07]}  Bd7 {[%clk 0:00:05]} 71. Kh2 {[%clk 0:00:06]}  Bg4 {[%clk 0:00:04]} 72. Rc4 {[%clk 0:00:06]}  Kh5 {[%clk 0:00:04]} 73. Rd4 {[%clk 0:00:05]}  Rf2+ {[%clk 0:00:04]} 74. Kg1 {[%clk 0:00:04]}  Ra2 {[%clk 0:00:04]} 75. Rd8 {[%clk 0:00:04]}  Bf5 {[%clk 0:00:04]} 76. Rd5 {[%clk 0:00:03]}  Kg4 {[%clk 0:00:04]} 77. Rd4+ {[%clk 0:00:03]}  Kf3 {[%clk 0:00:04]} 78. Kh1 {[%clk 0:00:03]}  Kg3 {[%clk 0:00:03]} 79. Rd1 {[%clk 0:00:02]}  Be4+ {[%clk 0:00:03]} 80. Kg1 {[%clk 0:00:02]}  g4 {[%clk 0:00:03]} 81. Kf1 {[%clk 0:00:02]}  Bg2+ {[%clk 0:00:02]} 82. Ke1 {[%clk 0:00:03]}  Bf3 {[%clk 0:00:02]} 83. Rd3 {[%clk 0:00:03]}  Rh2 {[%clk 0:00:01]} 84. Kf1 {[%clk 0:00:04]}  Rh1# {[%clk 0:00:02]} 0-1


[Site "https://www.chess.com"]

[Event "Titled Tuesday Blitz May 16 Late 2023"]
[White "Kim, Sergey"]
[Black "Papayan, Oleg"]
[WhiteFideId "13700570"]
[BlackFideId "4193911"]
[WhiteElo "2581"]
[BlackElo "2171"]
[Result "1-0"]
[Round "10"]
[TimeControl "180+2"]
[Date "2023.05.16"]
[WhiteClock "0:00:05"]
[BlackClock "0:00:33"]

1. d4 {[%clk 0:03:00]}  Nf6 {[%clk 0:02:59]} 2. c4 {[%clk 0:03:00]}  e6 {[%clk 0:02:59]} 3. Nc3 {[%clk 0:03:01]}  Bb4 {[%clk 0:02:59]} 4. Qc2 {[%clk 0:03:01]}  O-O {[%clk 0:02:59]} 5. a3 {[%clk 0:03:01]}  Bxc3+ {[%clk 0:02:59]} 6. Qxc3 {[%clk 0:03:01]}  d5 {[%clk 0:02:59]} 7. Nf3 {[%clk 0:03:01]}  dxc4 {[%clk 0:02:49]} 8. Qxc4 {[%clk 0:03:01]}  b6 {[%clk 0:02:49]} 9. g3 {[%clk 0:03:01]}  Bb7 {[%clk 0:02:38]} 10. Bg2 {[%clk 0:03:01]}  Nbd7 {[%clk 0:02:37]} 11. O-O {[%clk 0:03:01]}  c5 {[%clk 0:02:33]} 12. Rd1 {[%clk 0:03:01]}  Bd5 {[%clk 0:02:18]} 13. Qa4 {[%clk 0:02:52]}  c4 {[%clk 0:02:17]} 14. Bf4 {[%clk 0:02:39]}  a6 {[%clk 0:02:11]} 15. Ne5 {[%clk 0:02:26]}  b5 {[%clk 0:02:07]} 16. Qc2 {[%clk 0:02:26]}  Bxg2 {[%clk 0:02:04]} 17. Kxg2 {[%clk 0:02:26]}  Nd5 {[%clk 0:01:59]} 18. Qe4 {[%clk 0:02:00]}  N7f6 {[%clk 0:01:52]} 19. Qf3 {[%clk 0:01:57]}  Nxf4+ {[%clk 0:01:50]} 20. Qxf4 {[%clk 0:01:50]}  Rc8 {[%clk 0:01:45]} 21. Rac1 {[%clk 0:01:43]}  Qc7 {[%clk 0:01:23]} 22. Qf3 {[%clk 0:01:36]}  Nd7 {[%clk 0:01:11]} 23. Nd3 {[%clk 0:01:21]}  Qd6 {[%clk 0:01:09]} 24. Nf4 {[%clk 0:01:17]}  Nb6 {[%clk 0:01:05]} 25. e4 {[%clk 0:01:16]}  Na4 {[%clk 0:01:04]} 26. e5 {[%clk 0:01:10]}  Qe7 {[%clk 0:00:56]} 27. Rc2 {[%clk 0:01:04]}  Rfd8 {[%clk 0:00:54]} 28. h4 {[%clk 0:00:55]}  a5 {[%clk 0:00:53]} 29. h5 {[%clk 0:00:46]}  b4 {[%clk 0:00:53]} 30. axb4 {[%clk 0:00:44]}  axb4 {[%clk 0:00:54]} 31. h6 {[%clk 0:00:43]}  g6 {[%clk 0:00:55]} 32. d5 {[%clk 0:00:35]}  b3 {[%clk 0:00:53]} 33. Rcd2 {[%clk 0:00:20]}  c3 {[%clk 0:00:51]} 34. bxc3 {[%clk 0:00:20]}  Nxc3 {[%clk 0:00:44]} 35. Re1 {[%clk 0:00:17]}  Nxd5 {[%clk 0:00:41]} 36. Nxd5 {[%clk 0:00:16]}  exd5 {[%clk 0:00:42]} 37. Qxb3 {[%clk 0:00:16]}  d4 {[%clk 0:00:38]} 38. Qf3 {[%clk 0:00:13]}  Qg5 {[%clk 0:00:34]} 39. Red1 {[%clk 0:00:09]}  Qxe5 {[%clk 0:00:32]} 40. Re2 {[%clk 0:00:08]}  Qd5 {[%clk 0:00:30]} 41. Re8+ {[%clk 0:00:06]}  Rxe8 {[%clk 0:00:31]} 42. Qxd5 {[%clk 0:00:05]}  Rcd8 {[%clk 0:00:31]} 43. Qc6 {[%clk 0:00:05]}  d3 {[%clk 0:00:32]} 44. Qf6 {[%clk 0:00:05]}  d2 {[%clk 0:00:33]} 45. Qg7# {[%clk 0:00:05]} 1-0


[Site "https://www.chess.com"]

[Event "Titled Tuesday Blitz May 16 Late 2023"]
[White "Tisaj, Domen"]
[Black "Buchenau, Frank"]
[WhiteFideId "14628708"]
[BlackFideId "4604350"]
[WhiteElo "2340"]
[BlackElo "2157"]
[Result "0-1"]
[Round "10"]
[TimeControl "180+2"]
[Date "2023.05.16"]
[WhiteClock "0:01:53"]
[BlackClock "0:02:09"]

1. b3 {[%clk 0:03:00]}  d5 {[%clk 0:02:57]} 2. e3 {[%clk 0:03:00]}  e5 {[%clk 0:02:54]} 3. Bb2 {[%clk 0:03:01]}  Nd7 {[%clk 0:02:50]} 4. Nf3 {[%clk 0:03:01]}  Bd6 {[%clk 0:02:48]} 5. d4 {[%clk 0:03:00]}  e4 {[%clk 0:02:47]} 6. Ne5 {[%clk 0:02:59]}  Qe7 {[%clk 0:02:42]} 7. Nxd7 {[%clk 0:02:54]}  Bxd7 {[%clk 0:02:42]} 8. c4 {[%clk 0:02:55]}  c6 {[%clk 0:02:39]} 9. Nc3 {[%clk 0:02:52]}  Nf6 {[%clk 0:02:37]} 10. cxd5 {[%clk 0:02:52]}  cxd5 {[%clk 0:02:37]} 11. Be2 {[%clk 0:02:51]}  a6 {[%clk 0:02:34]} 12. O-O {[%clk 0:02:33]}  O-O {[%clk 0:02:32]} 13. Rc1 {[%clk 0:02:31]}  Rac8 {[%clk 0:02:30]} 14. Qd2 {[%clk 0:02:20]}  b5 {[%clk 0:02:29]} 15. f3 {[%clk 0:02:15]}  b4 {[%clk 0:02:20]} 16. Na4 {[%clk 0:02:14]}  Bb5 {[%clk 0:02:18]} 17. fxe4 {[%clk 0:02:09]}  Nxe4 {[%clk 0:02:17]} 18. Qd1 {[%clk 0:01:53]}  Qh4 {[%clk 0:02:09]} 0-1


[Site "https://www.chess.com"]

[Event "Titled Tuesday Blitz May 16 Late 2023"]
[White "cristianserban1"]
[Black "lluiss"]
[WhiteElo "2516"]
[BlackElo "2305"]
[Result "1-0"]
[Round "10"]
[TimeControl "180+2"]
[Date "2023.05.16"]
[WhiteClock "0:00:22"]
[BlackClock "0:00:11"]

1. d4 {[%clk 0:03:00]}  Nf6 {[%clk 0:02:58]} 2. Bf4 {[%clk 0:03:01]}  g6 {[%clk 0:02:56]} 3. Nc3 {[%clk 0:03:00]}  d5 {[%clk 0:02:56]} 4. e3 {[%clk 0:03:00]}  Bg7 {[%clk 0:02:56]} 5. Nf3 {[%clk 0:03:01]}  O-O {[%clk 0:02:56]} 6. Nb5 {[%clk 0:03:01]}  Na6 {[%clk 0:02:39]} 7. h3 {[%clk 0:03:01]}  c6 {[%clk 0:02:39]} 8. Nc3 {[%clk 0:03:01]}  Nc7 {[%clk 0:02:39]} 9. Be2 {[%clk 0:03:00]}  Ne6 {[%clk 0:02:38]} 10. Bh2 {[%clk 0:02:58]}  h6 {[%clk 0:02:37]} 11. O-O {[%clk 0:02:57]}  Ng5 {[%clk 0:02:37]} 12. Ne5 {[%clk 0:02:52]}  Nge4 {[%clk 0:02:36]} 13. a4 {[%clk 0:02:32]}  Nxc3 {[%clk 0:02:35]} 14. bxc3 {[%clk 0:02:33]}  Ne4 {[%clk 0:02:35]} 15. Qe1 {[%clk 0:02:20]}  Nd6 {[%clk 0:02:26]} 16. c4 {[%clk 0:02:04]}  dxc4 {[%clk 0:02:19]} 17. Nxc4 {[%clk 0:02:02]}  Be6 {[%clk 0:02:11]} 18. Nxd6 {[%clk 0:02:00]}  exd6 {[%clk 0:02:10]} 19. Qb4 {[%clk 0:02:00]}  c5 {[%clk 0:02:05]} 20. Qxb7 {[%clk 0:01:55]}  cxd4 {[%clk 0:02:05]} 21. exd4 {[%clk 0:01:55]}  Bxd4 {[%clk 0:02:05]} 22. Rad1 {[%clk 0:01:52]}  Bc5 {[%clk 0:02:04]} 23. Qa6 {[%clk 0:01:33]}  Qb6 {[%clk 0:01:54]} 24. Bxd6 {[%clk 0:01:31]}  Bxd6 {[%clk 0:01:40]} 25. Rxd6 {[%clk 0:01:30]}  Qb2 {[%clk 0:01:41]} 26. Bd3 {[%clk 0:01:27]}  g5 {[%clk 0:00:51]} 27. Re1 {[%clk 0:01:23]}  Qg7 {[%clk 0:00:41]} 28. Rexe6 {[%clk 0:01:18]}  fxe6 {[%clk 0:00:40]} 29. Rxe6 {[%clk 0:01:19]}  Qa1+ {[%clk 0:00:18]} 30. Kh2 {[%clk 0:01:18]}  Rf7 {[%clk 0:00:18]} 31. Rg6+ {[%clk 0:00:57]}  Kf8 {[%clk 0:00:18]} 32. Qd6+ {[%clk 0:00:25]}  Re7 {[%clk 0:00:17]} 33. Rf6+ {[%clk 0:00:24]}  Ke8 {[%clk 0:00:11]} 34. Bg6+ {[%clk 0:00:22]} 1-0


[Site "https://www.chess.com"]

[Event "Titled Tuesday Blitz May 16 Late 2023"]
[White "chess123456s"]
[Black "Fan_Of_Chucky"]
[WhiteElo "2588"]
[BlackElo "2430"]
[Result "0-1"]
[Round "10"]
[TimeControl "180+2"]
[Date "2023.05.16"]
[WhiteClock "0:00:20"]
[BlackClock "0:00:34"]

1. Nf3 {[%clk 0:03:00]}  c5 {[%clk 0:02:57]} 2. e3 {[%clk 0:03:00]}  Nf6 {[%clk 0:02:51]} 3. b3 {[%clk 0:02:58]}  g6 {[%clk 0:02:49]} 4. Bb2 {[%clk 0:02:58]}  Bg7 {[%clk 0:02:50]} 5. Be2 {[%clk 0:02:57]}  O-O {[%clk 0:02:48]} 6. c4 {[%clk 0:02:56]}  d5 {[%clk 0:02:45]} 7. O-O {[%clk 0:02:55]}  d4 {[%clk 0:02:39]} 8. exd4 {[%clk 0:02:47]}  Nh5 {[%clk 0:02:36]} 9. Ne5 {[%clk 0:02:41]}  cxd4 {[%clk 0:02:32]} 10. Bxh5 {[%clk 0:02:39]}  Bxe5 {[%clk 0:02:29]} 11. Bf3 {[%clk 0:02:36]}  Nc6 {[%clk 0:02:27]} 12. d3 {[%clk 0:02:35]}  Qc7 {[%clk 0:02:22]} 13. g3 {[%clk 0:02:33]}  Bh3 {[%clk 0:02:21]} 14. Bg2 {[%clk 0:02:32]}  Bxg2 {[%clk 0:02:09]} 15. Kxg2 {[%clk 0:02:23]}  f5 {[%clk 0:02:10]} 16. f4 {[%clk 0:02:20]}  Bg7 {[%clk 0:02:08]} 17. Nd2 {[%clk 0:02:21]}  e5 {[%clk 0:02:09]} 18. fxe5 {[%clk 0:02:19]}  Nxe5 {[%clk 0:02:06]} 19. Nf3 {[%clk 0:02:11]}  Ng4 {[%clk 0:02:03]} 20. Bc1 {[%clk 0:01:54]}  Qc6 {[%clk 0:02:03]} 21. Kg1 {[%clk 0:01:47]}  Ne3 {[%clk 0:02:04]} 22. Bxe3 {[%clk 0:01:46]}  dxe3 {[%clk 0:02:05]} 23. d4 {[%clk 0:01:44]}  Qe4 {[%clk 0:01:58]} 24. Qe2 {[%clk 0:01:43]}  Bxd4 {[%clk 0:01:46]} 25. Nxd4 {[%clk 0:01:40]}  Qxd4 {[%clk 0:01:47]} 26. Rad1 {[%clk 0:01:40]}  Qb6 {[%clk 0:01:44]} 27. Rd7 {[%clk 0:01:34]}  Rad8 {[%clk 0:01:39]} 28. Rfd1 {[%clk 0:01:34]}  Rxd7 {[%clk 0:01:33]} 29. Rxd7 {[%clk 0:01:34]}  Rf7 {[%clk 0:01:34]} 30. Rd3 {[%clk 0:01:31]}  Re7 {[%clk 0:01:32]} 31. Kg2 {[%clk 0:01:26]}  Qc6+ {[%clk 0:01:28]} 32. Kg1 {[%clk 0:01:16]}  Qe4 {[%clk 0:01:28]} 33. Rd8+ {[%clk 0:01:15]}  Kf7 {[%clk 0:01:25]} 34. Rd1 {[%clk 0:01:14]}  h5 {[%clk 0:01:17]} 35. c5 {[%clk 0:01:09]}  h4 {[%clk 0:01:10]} 36. Rd6 {[%clk 0:00:59]}  hxg3 {[%clk 0:01:06]} 37. hxg3 {[%clk 0:00:58]}  Qe5 {[%clk 0:01:05]} 38. Qc4+ {[%clk 0:00:38]}  Kg7 {[%clk 0:01:03]} 39. Rd8 {[%clk 0:00:37]}  Qxg3+ {[%clk 0:00:59]} 40. Kh1 {[%clk 0:00:37]}  Qf3+ {[%clk 0:00:44]} 41. Kh2 {[%clk 0:00:32]}  Qf2+ {[%clk 0:00:42]} 42. Kh3 {[%clk 0:00:30]}  Kf6 {[%clk 0:00:38]} 43. Qd4+ {[%clk 0:00:26]}  Kg5 {[%clk 0:00:36]} 44. Qd6 {[%clk 0:00:20]}  Rh7# {[%clk 0:00:34]} 0-1


[Site "https://www.chess.com"]

[Event "Titled Tuesday Blitz May 16 Late 2023"]
[White "Weber, Samuel"]
[Black "Karttunen, Mika"]
[WhiteFideId "12924008"]
[BlackFideId "502081"]
[WhiteElo "2162"]
[BlackElo "2396"]
[Result "0-1"]
[Round "10"]
[TimeControl "180+2"]
[Date "2023.05.16"]
[WhiteClock "0:00:00"]
[BlackClock "0:00:12"]

1. b3 {[%clk 0:02:59]}  Nf6 {[%clk 0:02:59]} 2. Bb2 {[%clk 0:03:00]}  e6 {[%clk 0:02:57]} 3. c4 {[%clk 0:03:00]}  d5 {[%clk 0:02:57]} 4. e3 {[%clk 0:02:57]}  c5 {[%clk 0:02:56]} 5. Nf3 {[%clk 0:02:57]}  Nc6 {[%clk 0:02:56]} 6. cxd5 {[%clk 0:02:56]}  exd5 {[%clk 0:02:56]} 7. d4 {[%clk 0:02:57]}  cxd4 {[%clk 0:02:52]} 8. Nxd4 {[%clk 0:02:57]}  Bb4+ {[%clk 0:02:53]} 9. Nd2 {[%clk 0:02:57]}  Ne4 {[%clk 0:02:52]} 10. Nf3 {[%clk 0:02:57]}  Qa5 {[%clk 0:02:51]} 11. a3 {[%clk 0:02:54]}  Bc3 {[%clk 0:02:42]} 12. b4 {[%clk 0:02:40]}  Qd8 {[%clk 0:02:27]} 13. Bxc3 {[%clk 0:02:40]}  Nxc3 {[%clk 0:02:25]} 14. Qc2 {[%clk 0:02:39]}  d4 {[%clk 0:02:25]} 15. Ne4 {[%clk 0:02:07]}  Bf5 {[%clk 0:02:04]} 16. Bd3 {[%clk 0:02:06]}  Qe7 {[%clk 0:01:46]} 17. Nd6+ {[%clk 0:02:02]}  Qxd6 {[%clk 0:01:46]} 18. Bxf5 {[%clk 0:02:02]}  g6 {[%clk 0:01:39]} 19. Be4 {[%clk 0:02:00]}  Rc8 {[%clk 0:00:46]} 20. O-O {[%clk 0:01:48]}  O-O {[%clk 0:00:43]} 21. Bxc6 {[%clk 0:01:44]}  Rxc6 {[%clk 0:00:43]} 22. Nxd4 {[%clk 0:01:42]}  Rc7 {[%clk 0:00:43]} 23. Rac1 {[%clk 0:01:35]}  Rfc8 {[%clk 0:00:42]} 24. Qb2 {[%clk 0:00:41]}  Na4 {[%clk 0:00:32]} 25. Qa1 {[%clk 0:00:35]}  Nc3 {[%clk 0:00:32]} 26. Rc2 {[%clk 0:00:29]}  a6 {[%clk 0:00:29]} 27. h4 {[%clk 0:00:20]}  h5 {[%clk 0:00:29]} 28. g3 {[%clk 0:00:21]}  Qd5 {[%clk 0:00:26]} 29. Kh2 {[%clk 0:00:20]}  Qe4 {[%clk 0:00:26]} 30. Rfc1 {[%clk 0:00:20]}  Qd3 {[%clk 0:00:26]} 31. Qb2 {[%clk 0:00:17]}  Na4 {[%clk 0:00:23]} 32. Qa1 {[%clk 0:00:17]}  Rxc2 {[%clk 0:00:22]} 33. Rxc2 {[%clk 0:00:14]}  Rxc2 {[%clk 0:00:23]} 34. Nxc2 {[%clk 0:00:12]}  Qxc2 {[%clk 0:00:23]} 35. Qf6 {[%clk 0:00:10]}  Qc6 {[%clk 0:00:22]} 36. Qd8+ {[%clk 0:00:10]}  Kg7 {[%clk 0:00:22]} 37. Qd4+ {[%clk 0:00:11]}  Kh7 {[%clk 0:00:22]} 38. g4 {[%clk 0:00:11]}  hxg4 {[%clk 0:00:22]} 39. Qxg4 {[%clk 0:00:11]}  Nb6 {[%clk 0:00:19]} 40. h5 {[%clk 0:00:10]}  Nd5 {[%clk 0:00:18]} 41. hxg6+ {[%clk 0:00:10]}  fxg6 {[%clk 0:00:17]} 42. e4 {[%clk 0:00:09]}  Nf6 {[%clk 0:00:17]} 43. Qh4+ {[%clk 0:00:09]}  Kg7 {[%clk 0:00:17]} 44. e5 {[%clk 0:00:10]}  Nh5 {[%clk 0:00:16]} 45. Qe7+ {[%clk 0:00:10]}  Kh6 {[%clk 0:00:15]} 46. Qf8+ {[%clk 0:00:11]}  Kg5 {[%clk 0:00:15]} 47. Qe7+ {[%clk 0:00:10]}  Kg4 {[%clk 0:00:12]} 48. Qf7 {[%clk 0:00:00]}  Nf4 {[%clk 0:00:12]} 0-1


[Site "https://www.chess.com"]

[Event "Titled Tuesday Blitz May 16 Late 2023"]
[White "Rottenwohrer Suarez, Juan"]
[Black "Cooklev, Steven"]
[WhiteFideId "32068182"]
[BlackFideId "2050552"]
[WhiteElo "2174"]
[BlackElo "2304"]
[Result "1-0"]
[Round "10"]
[TimeControl "180+2"]
[Date "2023.05.16"]
[WhiteClock "0:00:05"]
[BlackClock "0:00:00"]

1. Nf3 {[%clk 0:03:00]}  Nf6 {[%clk 0:02:59]} 2. g3 {[%clk 0:03:01]}  d5 {[%clk 0:02:59]} 3. Bg2 {[%clk 0:03:02]}  c5 {[%clk 0:02:58]} 4. O-O {[%clk 0:03:02]}  Nc6 {[%clk 0:02:55]} 5. c4 {[%clk 0:03:02]}  e6 {[%clk 0:02:54]} 6. cxd5 {[%clk 0:03:02]}  exd5 {[%clk 0:02:54]} 7. d4 {[%clk 0:03:03]}  Be7 {[%clk 0:02:54]} 8. Nc3 {[%clk 0:03:03]}  O-O {[%clk 0:02:53]} 9. Bg5 {[%clk 0:03:02]}  c4 {[%clk 0:02:53]} 10. Ne5 {[%clk 0:03:00]}  Be6 {[%clk 0:02:53]} 11. e3 {[%clk 0:02:57]}  Qa5 {[%clk 0:02:32]} 12. Qa4 {[%clk 0:02:53]}  Qxa4 {[%clk 0:02:23]} 13. Nxa4 {[%clk 0:02:52]}  h6 {[%clk 0:02:11]} 14. Bxf6 {[%clk 0:02:52]}  Bxf6 {[%clk 0:02:10]} 15. f4 {[%clk 0:02:34]}  Rad8 {[%clk 0:01:14]} 16. Nc5 {[%clk 0:02:24]}  Bc8 {[%clk 0:01:14]} 17. b3 {[%clk 0:02:14]}  Nxe5 {[%clk 0:01:00]} 18. fxe5 {[%clk 0:02:11]}  Be7 {[%clk 0:01:00]} 19. Na4 {[%clk 0:01:56]}  f6 {[%clk 0:00:37]} 20. exf6 {[%clk 0:01:42]}  Rxf6 {[%clk 0:00:33]} 21. Nc3 {[%clk 0:01:42]}  Be6 {[%clk 0:00:28]} 22. bxc4 {[%clk 0:01:38]}  dxc4 {[%clk 0:00:26]} 23. Bxb7 {[%clk 0:01:37]}  Rxf1+ {[%clk 0:00:19]} 24. Rxf1 {[%clk 0:01:36]}  Bg5 {[%clk 0:00:20]} 25. Re1 {[%clk 0:01:30]}  Rb8 {[%clk 0:00:18]} 26. Bd5 {[%clk 0:01:13]}  Bxd5 {[%clk 0:00:18]} 27. Nxd5 {[%clk 0:01:14]}  Rb2 {[%clk 0:00:18]} 28. h4 {[%clk 0:01:13]}  Bd8 {[%clk 0:00:18]} 29. Rc1 {[%clk 0:01:13]}  Rxa2 {[%clk 0:00:16]} 30. Rxc4 {[%clk 0:01:13]}  Ba5 {[%clk 0:00:15]} 31. Rc1 {[%clk 0:00:46]}  Bd2 {[%clk 0:00:14]} 32. Rd1 {[%clk 0:00:43]}  a5 {[%clk 0:00:14]} 33. Kf2 {[%clk 0:00:38]}  a4 {[%clk 0:00:12]} 34. Ke2 {[%clk 0:00:36]}  Ba5+ {[%clk 0:00:12]} 35. Kd3 {[%clk 0:00:36]}  a3 {[%clk 0:00:11]} 36. Ne7+ {[%clk 0:00:30]}  Kf7 {[%clk 0:00:11]} 37. Nc6 {[%clk 0:00:31]}  Bc7 {[%clk 0:00:10]} 38. Nb4 {[%clk 0:00:25]}  Rg2 {[%clk 0:00:10]} 39. Ra1 {[%clk 0:00:22]}  Rxg3 {[%clk 0:00:09]} 40. Rxa3 {[%clk 0:00:20]}  Bf4 {[%clk 0:00:09]} 41. Nd5 {[%clk 0:00:17]}  Bd6 {[%clk 0:00:08]} 42. Ra6 {[%clk 0:00:16]}  Ke6 {[%clk 0:00:05]} 43. Nf4+ {[%clk 0:00:13]}  Kd7 {[%clk 0:00:05]} 44. Ra7+ {[%clk 0:00:10]}  Kc6 {[%clk 0:00:05]} 45. Nh5 {[%clk 0:00:10]}  Rh3 {[%clk 0:00:04]} 46. Nxg7 {[%clk 0:00:09]}  Bf4 {[%clk 0:00:03]} 47. Nf5 {[%clk 0:00:07]}  Kd5 {[%clk 0:00:00]} 48. Ra6 {[%clk 0:00:05]} 1-0


[Site "https://www.chess.com"]